[Event "Chpt Reg Jeunes Occitanie 2026 - Espalion"]
[Site "Espalion, France"]
[Round "3.2"]
[ECO "?"]
[Annotator "?"]
[TimeControl "1h30 + 30sec/cp"]

1. e4 {[%clk 1:30:58][%emt 0:00:01]} 1... e5 {[%clk 1:29:12][%emt 0:01:49]} 2.
Nf3 {[%clk 1:31:27][%emt 0:00:01]} 2... Nc6 {[%clk 1:29:27][%emt 0:00:15]} 3.
Bb5 {[%clk 1:31:55]} 3... Bc5 {[%clk 1:29:32][%emt 0:00:25]} 4. O-O {[%clk
1:32:09][%emt 0:00:16]} 4... d6 {[%clk 1:27:38][%emt 0:02:25]} 5. c3 {[%clk
1:31:38][%emt 0:01:01]} 5... Bd7 {[%clk 1:26:55][%emt 0:01:12]} 6. d4 {[%clk
1:30:13][%emt 0:01:56]} 6... exd4 {[%emt 0:00:57]} 7. cxd4 {[%emt 0:00:15]}
7... Bb6 {[%clk 1:24:34][%emt 0:01:38]} 8. Nc3 {[%clk 1:28:32][%emt 0:02:10]}
8... Nge7 {[%clk 1:09:42][%emt 0:15:23]} 9. Re1 {[%clk 1:27:46][%emt 0:01:16]}
9... O-O {[%clk 1:06:04][%emt 0:04:09]} 10. h3 {[%clk 1:21:29][%emt 0:06:47]}
10... Ng6 {[%clk 1:02:18][%emt 0:04:16]} 11. Bg5 {[%clk 1:13:28][%emt 0:08:30]}
 11... Qc8 {[%clk 0:59:19][%emt 0:03:30]} 12. Rc1 {[%clk 1:10:28][%emt
0:03:30]} 12... Bxh3 {[%clk 0:54:10][%emt 0:05:40]} 13. gxh3 {[%clk
1:10:43][%emt 0:00:14]} 13... Qxh3 {[%clk 0:54:35][%emt 0:00:05]} 14. Bxc6
{[%clk 0:54:29][%emt 0:16:43]} 14... bxc6 {[%clk 0:54:13][%emt 0:00:53]} 15.
Nh2 {[%clk 0:54:25][%emt 0:00:34]} 15... h6 {[%clk 0:51:10][%emt 0:03:32]} 16.
Be3 {[%clk 0:43:50][%emt 0:11:05]} 16... Nh4 {[%clk 0:50:21][%emt 0:01:19]}
17. Qg4 {[%clk 0:43:52][%emt 0:00:27]} 17... Qxg4+ {[%clk 0:50:47][%emt
0:00:05]} 18. Nxg4 {[%clk 0:44:21]} 18... Nf3+ {[%clk 0:51:10][%emt 0:00:07]}
19. Kg2 {[%clk 0:44:41][%emt 0:00:09]} 19... Nxe1+ {[%clk 0:51:33][%emt
0:00:08]} 20. Rxe1 {[%clk 0:45:10][%emt 0:00:01]} 20... f5 {[%clk
0:50:58][%emt 0:01:05]} 21. exf5 {[%clk 0:39:36][%emt 0:06:05]} 21... Rxf5
{[%clk 0:50:59][%emt 0:00:29]} 22. Na4 {[%clk 0:38:17][%emt 0:01:49]} 22...
Re8 {[%clk 0:46:00][%emt 0:05:25]} 23. Rc1 {[%clk 0:33:03][%emt 0:05:49]}
23... Re4 {[%clk 0:45:54][%emt 0:00:35]} 24. f3 {[%clk 0:29:28][%emt 0:04:05]}
24... Re8 {[%clk 0:44:48][%emt 0:01:37]} 25. Kf2 {[%clk 0:24:26][%emt 0:05:32]}
 25... h5 {[%clk 0:41:01][%emt 0:04:17]} 26. Nh2 {[%clk 0:24:55][%emt 0:00:01]}
 26... c5 {[%clk 0:41:26][%emt 0:00:05]} 27. dxc5 {[%clk 0:24:45][%emt
0:00:40]} 27... dxc5 {[%clk 0:41:50][%emt 0:00:06]} 28. Rc4 {[%clk
0:24:28][%emt 0:00:47]} 28... g5 {[%clk 0:41:13][%emt 0:01:06]} 29. Nc3 {[%clk
0:19:54][%emt 0:05:03]} 29... c6 {[%clk 0:37:09][%emt 0:04:35]} 30. Nf1 {[%clk
0:19:31][%emt 0:00:54]} 30... g4 {[%clk 0:36:19][%emt 0:01:19]} 31. Bf4 {[%clk
0:15:36][%emt 0:04:23]} 31... Ref8 {[%clk 0:28:11][%emt 0:08:41]} 32. Ne2
{[%clk 0:16:05][%emt 0:00:01]} 32... gxf3 {[%clk 0:25:21][%emt 0:03:19]} 33.
Kxf3 {[%clk 0:16:34][%emt 0:00:01]} 33... Rd8 {[%clk 0:24:31][%emt 0:01:21]}
34. Nfg3 {[%clk 0:16:07][%emt 0:00:57]} 34... Rfd5 {[%clk 0:24:25][%emt
0:00:35]} 35. Ne4 {[%clk 0:14:46][%emt 0:01:51]} 35... Rf8 {[%clk
0:24:05][%emt 0:00:50]} 36. Ke3 {[%clk 0:14:23][%emt 0:00:53]} 36... Kg7
{[%clk 0:23:06][%emt 0:01:29]} 37. Bd6 {[%clk 0:10:43][%emt 0:04:08]} 37...
Re8 {[%clk 0:23:12][%emt 0:00:26]} 38. Bg3 {[%clk 0:08:45][%emt 0:02:27]}
38... Bd8 {[%clk 0:20:38][%emt 0:03:06]} 39. N2c3 {[%clk 0:08:34][%emt
0:00:41]} 39... Bg5+ {[%clk 0:20:37][%emt 0:00:31]} 40. Kf2 {[%clk
0:08:57][%emt 0:00:01]} 40... Rf5+ {[%clk 0:20:42][%emt 0:00:30]} 41. Kg2
{[%clk 0:09:11][%emt 0:00:16]} 41... Be7 {[%clk 0:17:12][%emt 0:03:59]} 42.
Ra4 {[%clk 0:08:47][%emt 0:00:55]} 42... h4 {[%clk 0:16:12][%emt 0:01:30]} 43.
Bf2 {[%clk 0:09:10][%emt 0:00:07]} 43... Ra8 {[%clk 0:14:18][%emt 0:02:25]}
44. Ra6 {[%clk 0:09:32][%emt 0:00:07]} 44... Kf7 {[%clk 0:11:59][%emt 0:02:48]}
 45. Rxc6 {[%clk 0:09:44][%emt 0:00:20]} 45... Rg8+ {[%clk 0:12:24][%emt
0:00:04]} 46. Kh3 {[%clk 0:08:59][%emt 0:01:16]} 46... Rf3+ {[%clk
0:12:23][%emt 0:00:30]} 47. Kh2 {[%clk 0:09:25][%emt 0:00:04]} 47... h3 {[%clk
0:12:09][%emt 0:00:44]} 48. Bg3 {[%clk 0:09:10][%emt 0:00:45]} 48... Rh8
{[%clk 0:09:00][%emt 0:03:40]} 49. Rc7 {[%clk 0:09:12][%emt 0:00:27]} 49...
Ke6 {[%clk 0:08:44][%emt 0:00:46]} 50. Rxa7 {[%clk 0:09:14][%emt 0:00:29]}
50... c4 {[%clk 0:07:35][%emt 0:01:39]} 51. Rc7 {[%clk 0:09:00][%emt 0:00:41]}
51... Bh4 {[%clk 0:06:09][%emt 0:01:59]} 52. Bxh4 {[%clk 0:09:02][%emt
0:00:28]} 52... Rxc3 {[%clk 0:06:25][%emt 0:00:15]} 53. Nxc3 {[%clk
0:09:08][%emt 0:00:23]} 53... Rxh4 {[%clk 0:06:47][%emt 0:00:09]} 54. a4
{[%clk 0:09:28][%emt 0:00:11]} 54... Kd6 {[%clk 0:07:09][%emt 0:00:07]} 55.
Nb5+ {[%clk 0:09:10][%emt 0:00:48]} 55... Kd5 {[%clk 0:07:22][%emt 0:00:17]}
56. a5 {[%clk 0:08:38][%emt 0:01:02]} 56... Rh6 {[%clk 0:07:44][%emt 0:00:06]}
57. Rb7 {[%clk 0:08:40][%emt 0:00:29]} 57... Kc5 {[%clk 0:08:03][%emt 0:00:11]}
 58. Nc7 {[%clk 0:07:51][%emt 0:01:19]} 58... Rd6 {[%clk 0:07:26][%emt
0:01:07]} 59. a6 {[%clk 0:05:55][%emt 0:02:26]} 59... c3 {[%clk 0:07:49][%emt
0:00:07]} 60. bxc3 {[%clk 0:04:40][%emt 0:01:45]} 60... Kc6 {[%clk
0:07:06][%emt 0:01:13]} 61. a7 {[%clk 0:04:01][%emt 0:01:10]} 61... Rd2+
{[%clk 0:07:29][%emt 0:00:07]} 62. Kxh3 {[%clk 0:04:20][%emt 0:00:10]} 62...
Ra2 {[%clk 0:07:51][%emt 0:00:09]} 63. Rb8 {[%clk 0:02:59][%emt 0:01:50]}
63... Rxa7 {[%clk 0:08:10][%emt 0:00:11]} 64. Nb5 {[%clk 0:03:23][%emt
0:00:07]} 64... Rg7 {[%clk 0:08:19][%emt 0:00:20]} 65. Nd4+ {[%clk
0:03:30][%emt 0:00:24]} 65... Kd5 {[%clk 0:08:30][%emt 0:00:19]} 66. Rf8
{[%clk 0:03:16][%emt 0:00:42]} 66... Kc4 {[%clk 0:08:46][%emt 0:00:14]} 67.
Rf3 {[%clk 0:03:38][%emt 0:00:07]} 67... Ra7 {[%clk 0:08:40][%emt 0:00:38]}
68. Kg3 {[%clk 0:03:57][%emt 0:00:11]} 68... Ra3 {[%clk 0:09:00][%emt 0:00:10]}
 69. Ne2 {[%clk 0:04:19][%emt 0:00:08]} 69... Ra2 {[%clk 0:09:23][%emt
0:00:06]} 70. Kf2 {[%clk 0:04:41][%emt 0:00:07]} 70... Rc2 {[%clk
0:09:43][%emt 0:00:10]} 71. Ke3 {[%clk 0:04:54][%emt 0:00:17]} 71... Ra2
{[%clk 0:09:59][%emt 0:00:15]} 72. Rf4+ {[%clk 0:05:13][%emt 0:00:11]} 72...
Kc5 {[%clk 0:10:02][%emt 0:00:28]} 73. Kd3 {[%clk 0:05:36][%emt 0:00:07]}
73... Ra8 {[%clk 0:10:24][%emt 0:00:07]} 74. Rf5+ {[%clk 0:05:57][%emt
0:00:11]} 74... Kb6 {[%clk 0:10:42][%emt 0:00:11]} 75. c4 {[%clk 0:06:14][%emt
0:00:13]} 75... Rd8+ {[%clk 0:10:54][%emt 0:00:18]} 76. Kc3 {[%clk
0:06:32][%emt 0:00:12]} 76... Re8 {[%clk 0:11:11][%emt 0:00:13]} 77. Nd4
{[%clk 0:06:51][%emt 0:00:11]} 77... Re3+ {[%clk 0:11:36][%emt 0:00:05]} 78.
Kb4 {[%clk 0:07:16][%emt 0:00:05]} 78... Re1 {[%clk 0:11:45][%emt 0:00:20]}
79. Rf6+ {[%clk 0:07:39][%emt 0:00:07]} 79... Kc7 {[%clk 0:12:08][%emt
0:00:07]} 80. Nb5+ {[%clk 0:08:00][%emt 0:00:09]} 80... Kb7 {[%clk
0:12:29][%emt 0:00:09]} 81. Nc3 {[%clk 0:08:00][%emt 0:00:31]} 81... Re3
{[%clk 0:12:30][%emt 0:00:29]} 82. c5 {[%clk 0:08:20][%emt 0:00:10]} 82... Rh3
{[%clk 0:12:54][%emt 0:00:06]} 83. Nd5 {[%clk 0:08:16][%emt 0:00:35]} 83...
Rh1 {[%clk 0:13:13][%emt 0:00:11]} 84. c6+ {[%clk 0:08:32][%emt 0:00:14]}
84... Ka6 {[%clk 0:13:36][%emt 0:00:07]} 85. Kc5 {[%clk 0:08:49][%emt 0:00:12]}
 85... Rh7 {[%clk 0:13:44][%emt 0:00:22]} 86. Rf1 {[%clk 0:08:50][%emt
0:00:30]} 86... Ka7 {[%clk 0:13:56][%emt 0:00:18]} 87. Ra1+ {[%clk
0:09:12][%emt 0:00:07]} 87... Kb8 {[%clk 0:14:21][%emt 0:00:05]} 88. c7+
{[%clk 0:09:29][%emt 0:00:14]} 88... Kb7 {[%clk 0:14:43][%emt 0:00:07]} 89.
Rb1+ {[%clk 0:09:54][%emt 0:00:05]} 1-0

[White "ROUBAUD, Louis-Alexandre"]
[Black "POSOCCO DE GRANDI, Marc"]
[WhiteElo "1711"]
[BlackElo "1871"]
[Result "0-1"]
[Date "2026.03.05"]

[Event "Chpt Reg Jeunes Occitanie 2026 - Espalion"]
[Site "Espalion, France"]
[Round "3.3"]
[ECO "?"]
[Annotator "?"]
[TimeControl "1h30 + 30sec/cp"]

1. d4 {[%clk 1:30:55][%emt 0:00:04]} 1... Nf6 {[%clk 1:29:05][%emt 0:01:56]}
2. Nc3 {[%clk 1:31:07][%emt 0:00:17]} 2... d5 {[%clk 1:28:56][%emt 0:00:39]}
3. Bf4 {[%clk 1:31:22][%emt 0:00:14]} 3... c5 {[%clk 1:27:00][%emt 0:02:27]}
4. e3 {[%clk 1:30:47][%emt 0:01:05]} 4... a6 {[%clk 1:25:35][%emt 0:01:56]} 5.
dxc5 {[%clk 1:30:40][%emt 0:00:36]} 5... e6 {[%clk 1:24:23][%emt 0:01:42]} 6.
b4 {[%clk 1:27:42][%emt 0:03:28]} 6... Nc6 {[%clk 1:10:53][%emt 0:14:00]} 7.
a3 {[%clk 1:24:17][%emt 0:03:55]} 7... Bd7 {[%clk 1:01:56][%emt 0:09:27]} 8.
Nf3 {[%clk 1:23:47][%emt 0:01:00]} 8... Be7 {[%clk 0:55:12][%emt 0:07:15]} 9.
Bd3 {[%clk 1:21:08][%emt 0:03:08]} 9... O-O {[%clk 0:53:33][%emt 0:02:09]} 10.
Ne5 {[%clk 1:20:16][%emt 0:01:23]} 10... Nxe5 {[%clk 0:51:22][%emt 0:02:41]}
11. Bxe5 {[%clk 1:20:32][%emt 0:00:13]} 11... b6 {[%clk 0:51:35][%emt 0:00:18]}
 12. cxb6 {[%clk 1:16:50][%emt 0:04:11]} 12... Qxb6 {[%clk 0:51:30][%emt
0:00:35]} 13. Qf3 {[%clk 1:16:56][%emt 0:00:25]} 13... Rac8 {[%clk
0:47:51][%emt 0:04:09]} 14. Qh3 {[%clk 1:16:19][%emt 0:01:06]} 14... h6 {[%clk
0:47:41][%emt 0:00:40]} 15. Qg3 {[%clk 1:13:20][%emt 0:03:30]} 15... Kh8
{[%clk 0:45:49][%emt 0:02:21]} 16. Qh3 {[%clk 1:10:00][%emt 0:03:50]} 16...
Rxc3 {[%clk 0:35:20][%emt 0:11:00]} 17. Bxc3 {[%clk 1:09:55][%emt 0:00:34]}
17... e5 {[%clk 0:34:57][%emt 0:00:54]} 18. Qh4 {[%clk 1:08:44][%emt 0:01:40]}
18... d4 {[%clk 0:33:57][%emt 0:01:30]} 19. exd4 {[%clk 1:06:56][%emt 0:02:19]}
 19... e4 {[%clk 0:31:44][%emt 0:02:43]} 20. Bxe4 {[%clk 0:57:53][%emt
0:09:32]} 20... Qe6 {[%clk 0:30:47][%emt 0:01:27]} 21. f3 {[%clk 0:54:32][%emt
0:03:52]} 21... Nd5 {[%clk 0:29:05][%emt 0:02:11]} 22. Qf2 {[%clk
0:53:48][%emt 0:01:14]} 22... f5 {[%clk 0:26:46][%emt 0:02:49]} 23. O-O {[%clk
0:52:54][%emt 0:01:25]} 23... fxe4 {[%clk 0:26:46][%emt 0:00:30]} 24. Bb2
{[%clk 0:52:53][%emt 0:00:31]} 24... e3 {[%clk 0:26:13][%emt 0:01:03]} 25. Qe2
{[%clk 0:53:07][%emt 0:00:15]} 25... Nf4 {[%clk 0:25:34][%emt 0:01:10]} 26.
Qe1 {[%clk 0:52:53][%emt 0:00:43]} 26... Bb5 {[%clk 0:23:16][%emt 0:02:48]}
27. g3 {[%clk 0:52:36][%emt 0:00:47]} 27... e2 {[%emt 0:07:34]} 0-1

[White "FERRAND, Gabin"]
[Black "DECLERCK, Timothee"]
[WhiteElo "1675"]
[BlackElo "1854"]
[Result "0-1"]
[Date "2026.03.05"]

[Event "Chpt Reg Jeunes Occitanie 2026 - Espalion"]
[Site "Espalion, France"]
[Round "3.4"]
[ECO "?"]
[Annotator "?"]
[TimeControl "1h30 + 30sec/cp"]

1. d4 {[%clk 1:29:04][%emt 0:01:55]} 1... d5 {[%clk 1:30:50][%emt 0:00:10]} 2.
Bf4 {[%clk 1:28:54][%emt 0:00:40]} 2... Nf6 {[%clk 1:30:55][%emt 0:00:25]} 3.
e3 {[%clk 1:28:49][%emt 0:00:35]} 3... c5 {[%clk 1:30:07][%emt 0:01:19]} 4. c3
{[%clk 1:28:32][%emt 0:00:47]} 4... Nc6 {[%clk 1:30:17][%emt 0:00:20]} 5. Bb5
{[%clk 1:28:01][%emt 0:01:01]} 5... Qb6 {[%clk 1:26:06][%emt 0:04:40]} 6.
Bxc6+ {[%clk 1:25:08][%emt 0:03:23]} 6... bxc6 {[%clk 1:22:59][%emt 0:03:37]}
7. Qc2 {[%clk 1:23:37][%emt 0:02:00]} 7... g6 {[%clk 1:12:10][%emt 0:11:19]}
8. Nf3 {[%clk 1:18:57][%emt 0:05:10]} 8... Bg7 {[%clk 1:06:07][%emt 0:06:33]}
9. O-O {[%clk 1:17:07][%emt 0:02:20]} 9... O-O {[%clk 1:06:15][%emt 0:00:22]}
10. Nbd2 {[%clk 1:15:57][%emt 0:01:40]} 10... Bf5 {[%clk 1:00:13][%emt
0:06:32]} 11. Qb3 {[%clk 1:13:10][%emt 0:03:16]} 11... c4 {[%clk 0:56:12][%emt
0:04:31]} 12. Qxb6 {[%clk 1:12:16][%emt 0:01:25]} 12... axb6 {[%clk
0:56:41][%emt 0:00:01]} 13. Ne5 {[%clk 1:10:45][%emt 0:02:01]} 13... Rfc8
{[%clk 0:53:42][%emt 0:03:29]} 14. b3 {[%clk 1:09:23][%emt 0:01:53]} 14...
cxb3 {[%clk 0:53:03][%emt 0:01:09]} 15. axb3 {[%clk 1:09:46][%emt 0:00:06]}
15... c5 {[%clk 0:53:03][%emt 0:00:31]} 16. Rxa8 {[%clk 1:05:33][%emt 0:04:42]}
 16... Rxa8 {[%clk 0:53:31][%emt 0:00:02]} 17. Nc6 {[%clk 1:05:46][%emt
0:00:17]} 17... Kf8 {[%clk 0:48:21][%emt 0:05:39]} 18. dxc5 {[%clk
1:04:22][%emt 0:01:55]} 18... bxc5 {[%clk 0:47:40][%emt 0:01:12]} 19. c4
{[%clk 1:04:00][%emt 0:00:51]} 19... Ra2 {[%clk 0:38:57][%emt 0:09:14]} 20.
Rd1 {[%clk 1:00:05][%emt 0:04:25]} 20... Bc2 {[%clk 0:39:07][%emt 0:00:20]}
21. Rc1 {[%clk 1:00:28][%emt 0:00:06]} 21... Bd3 {[%clk 0:36:18][%emt 0:03:19]}
 22. Nf3 {[%clk 0:59:58][%emt 0:00:59]} 22... dxc4 {[%clk 0:35:50][%emt
0:00:59]} 23. bxc4 {[%clk 0:59:08][%emt 0:01:21]} 23... Ne4 {[%clk
0:33:38][%emt 0:02:41]} 24. Rd1 {[%clk 0:58:09][%emt 0:01:29]} 24... Nc3
{[%clk 0:32:24][%emt 0:01:44]} 25. Rd2 {[%clk 0:56:37][%emt 0:02:03]} 25...
Ra1+ {[%clk 0:32:43][%emt 0:00:10]} 0-1

[White "LADIER, Lucas"]
[Black "CADILHAC-SEFFINO, Lea"]
[WhiteElo "1833"]
[BlackElo "1539"]
[Result "1-0"]
[Date "2026.03.05"]

[Event "Chpt Reg Jeunes Occitanie 2026 - Espalion"]
[Site "Espalion, France"]
[Round "3.5"]
[ECO "?"]
[Annotator "?"]
[TimeControl "1h30 + 30sec/cp"]

1. e4 {[%clk 1:30:56][%emt 0:00:02]} 1... e5 {[%clk 1:30:52][%emt 0:00:08]} 2.
Nf3 {[%clk 1:31:17][%emt 0:00:09]} 2... Nc6 {[%clk 1:31:13][%emt 0:00:11]} 3.
Bc4 {[%clk 1:31:40][%emt 0:00:07]} 3... Bc5 {[%clk 1:31:30][%emt 0:00:13]} 4.
c3 {[%clk 1:32:01][%emt 0:00:08]} 4... Nf6 {[%clk 1:31:49][%emt 0:00:11]} 5.
d4 {[%clk 1:32:24][%emt 0:00:08]} 5... exd4 {[%clk 1:32:03][%emt 0:00:16]} 6.
e5 {[%clk 1:32:45][%emt 0:00:09]} 6... d5 {[%clk 1:30:54][%emt 0:01:40]} 7.
Bb5 {[%clk 1:33:04][%emt 0:00:10]} 7... Ne4 {[%clk 1:30:11][%emt 0:01:13]} 8.
cxd4 {[%clk 1:33:21][%emt 0:00:13]} 8... Bb6 {[%clk 1:29:50][%emt 0:00:51]} 9.
Nc3 {[%clk 1:31:07][%emt 0:02:44]} 9... Ba5 {[%clk 1:24:59][%emt 0:05:21]} 10.
Qb3 {[%clk 1:19:45][%emt 0:11:52]} 10... O-O {[%clk 1:12:50][%emt 0:12:39]}
11. Be3 {[%clk 1:12:33][%emt 0:07:42]} 11... Ne7 {[%clk 0:59:41][%emt 0:13:38]}
 12. O-O {[%clk 1:06:14][%emt 0:06:50]} 12... Be6 {[%clk 0:55:28][%emt
0:04:43]} 13. Ng5 {[%clk 0:59:20][%emt 0:07:23]} 13... Nxg5 {[%clk
0:41:35][%emt 0:14:24]} 14. Bxg5 {[%clk 0:59:27][%emt 0:00:23]} 14... c6
{[%clk 0:41:32][%emt 0:00:34]} 15. Bd3 {[%clk 0:58:18][%emt 0:01:38]} 15... h6
{[%clk 0:40:31][%emt 0:01:30]} 16. Bh4 {[%clk 0:54:16][%emt 0:04:32]} 16...
Qd7 {[%clk 0:40:24][%emt 0:00:38]} 17. f4 {[%clk 0:52:40][%emt 0:02:05]} 17...
Nf5 {[%clk 0:38:11][%emt 0:02:43]} 18. Bf2 {[%clk 0:52:09][%emt 0:01:01]}
18... Bb6 {[%clk 0:37:27][%emt 0:01:15]} 19. Ne2 {[%emt 0:08:34]} 19... Rac8
{[%clk 0:31:32]} 20. g4 {[%clk 0:35:40][%emt 0:15:20]} 20... Nxd4 {[%clk
0:30:38][%emt 0:01:24]} 21. Bxd4 {[%clk 0:33:54][%emt 0:02:15]} 21... Bxd4+
{[%clk 0:29:41][%emt 0:01:28]} 22. Nxd4 {[%clk 0:34:15][%emt 0:00:09]} 22...
Bxg4 {[%clk 0:30:00][%emt 0:00:11]} 23. Qc2 {[%clk 0:30:25][%emt 0:04:19]}
23... g6 {[%clk 0:25:39][%emt 0:04:51]} 24. b4 {[%clk 0:23:17][%emt 0:07:38]}
24... h5 {[%clk 0:23:03][%emt 0:03:06]} 25. f5 {[%clk 0:21:58][%emt 0:01:50]}
25... Qe7 {[%clk 0:20:12][%emt 0:03:16]} 26. Qc5 {[%clk 0:14:36][%emt 0:07:57]}
 26... Qxe5 {[%clk 0:19:10][%emt 0:01:31]} 27. Rae1 {[%clk 0:14:32][%emt
0:00:34]} 27... Qg7 {[%clk 0:17:45][%emt 0:01:52]} 28. Kh1 {[%clk
0:08:11][%emt 0:06:54]} 28... b6 {[%clk 0:14:09][%emt 0:04:06]} 29. f6 {[%clk
0:07:45][%emt 0:00:56]} 29... bxc5 {[%clk 0:12:20][%emt 0:02:19]} 30. fxg7
{[%clk 0:08:06][%emt 0:00:09]} 30... Kxg7 {[%clk 0:12:42][%emt 0:00:09]} 31.
bxc5 {[%clk 0:08:24][%emt 0:00:12]} 31... Bd7 {[%clk 0:11:44][%emt 0:01:26]}
32. Re7 {[%clk 0:07:46][%emt 0:01:10]} 32... Rc7 {[%clk 0:10:01][%emt 0:02:13]}
 33. Ne6+ {[%clk 0:07:18][%emt 0:00:58]} 33... Bxe6 {[%clk 0:10:00][%emt
0:00:32]} 34. Rxc7 {[%clk 0:07:40][%emt 0:00:07]} 34... d4 {[%clk
0:09:41][%emt 0:00:49]} 35. Rxa7 {[%clk 0:07:30][%emt 0:00:40]} 35... Bd5+
{[%clk 0:09:23][%emt 0:00:48]} 36. Kg1 {[%clk 0:07:54][%emt 0:00:06]} 36...
Re8 {[%clk 0:09:28][%emt 0:00:23]} 37. a4 {[%clk 0:06:43][%emt 0:01:43]} 37...
Re3 {[%clk 0:09:24][%emt 0:00:34]} 38. Rd1 {[%clk 0:06:35][%emt 0:00:37]}
38... Kf6 {[%clk 0:06:56][%emt 0:02:59]} 39. Bf1 {[%clk 0:06:11][%emt 0:00:54]}
 39... Ke5 {[%clk 0:06:28][%emt 0:00:58]} 40. Bg2 {[%clk 0:05:48][%emt
0:00:52]} 40... Bxg2 {[%clk 0:05:12][%emt 0:01:45]} 41. Kxg2 {[%clk
0:06:01][%emt 0:00:18]} 41... Kd5 {[%clk 0:04:41][%emt 0:01:01]} 42. Rd7+
{[%clk 0:05:52][%emt 0:00:39]} 42... Kxc5 {[%clk 0:04:57][%emt 0:00:14]} 43.
R7xd4 {[%clk 0:06:05][%emt 0:00:17]} 43... Re2+ {[%clk 0:04:08][%emt 0:01:20]}
44. Kg3 {[%clk 0:06:27][%emt 0:00:07]} 44... Re3+ {[%clk 0:04:19][%emt
0:00:19]} 45. Kf4 {[%clk 0:06:31][%emt 0:00:26]} 45... Rh3 {[%clk
0:04:10][%emt 0:00:39]} 46. R4d2 {[%clk 0:06:04][%emt 0:00:57]} 46... Ra3
{[%clk 0:03:35][%emt 0:01:06]} 47. Rc1+ {[%clk 0:05:36][%emt 0:00:57]} 47...
Kb6 {[%clk 0:03:54][%emt 0:00:11]} 48. Rd4 {[%clk 0:04:58][%emt 0:01:08]}
48... Rh3 {[%clk 0:03:27][%emt 0:00:56]} 49. Rd2 {[%clk 0:04:18][%emt 0:01:10]}
 49... Rh4+ {[%clk 0:03:39][%emt 0:00:18]} 50. Ke5 {[%clk 0:04:28][%emt
0:00:20]} 50... Rxa4 {[%clk 0:03:45][%emt 0:00:25]} 51. Kd6 {[%clk
0:04:42][%emt 0:00:15]} 51... c5 {[%clk 0:03:06][%emt 0:01:09]} 52. Rb2+
{[%clk 0:04:52][%emt 0:00:20]} 52... Rb4 {[%clk 0:03:07][%emt 0:00:29]} 53.
Rxb4+ {[%clk 0:05:10][%emt 0:00:12]} 53... cxb4 {[%clk 0:03:32][%emt 0:00:05]}
54. Kd5 {[%clk 0:04:20][%emt 0:01:19]} 54... Kb5 {[%clk 0:02:56][%emt 0:01:07]}
 55. Rc5+ {[%clk 0:04:21][%emt 0:00:29]} 55... Ka4 {[%emt 0:00:13]} 56. Kc4
{[%clk 0:04:36][%emt 0:00:14]} 56... f5 {[%clk 0:03:23][%emt 0:00:21]} 57. Rb5
{[%clk 0:04:54][%emt 0:00:11]} 57... f4 {[%clk 0:03:38][%emt 0:00:15]} 58.
Rxb4+ {[%clk 0:05:19][%emt 0:00:06]} 58... Ka5 {[%clk 0:04:04][%emt 0:00:04]}
59. Rb5+ {[%clk 0:05:30][%emt 0:00:18]} 59... Ka6 {[%clk 0:04:02][%emt
0:00:32]} 60. Rg5 {[%clk 0:05:47][%emt 0:00:13]} 60... Kb6 {[%clk
0:04:18][%emt 0:00:14]} 61. Rxg6+ {[%clk 0:06:11][%emt 0:00:06]} 61... Kc7
{[%clk 0:04:43][%emt 0:00:05]} 62. Rf6 {[%clk 0:06:31][%emt 0:00:09]} 62...
Kd7 {[%clk 0:05:09][%emt 0:00:05]} 63. Rxf4 {[%clk 0:06:55][%emt 0:00:06]}
63... Ke6 {[%clk 0:05:37][%emt 0:00:02]} 64. Kd4 {[%clk 0:07:10][%emt 0:00:15]}
 64... Ke7 {[%clk 0:05:58][%emt 0:00:09]} 65. Ke5 {[%clk 0:07:33][%emt
0:00:07]} 65... Ke8 {[%clk 0:06:20][%emt 0:00:08]} 66. Ke6 {[%clk
0:07:56][%emt 0:00:07]} 66... Kd8 {[%clk 0:06:41][%emt 0:00:10]} 67. Rf7
{[%clk 0:08:16][%emt 0:00:09]} 67... Ke8 {[%clk 0:07:04][%emt 0:00:06]} 68.
Rh7 {[%clk 0:08:33][%emt 0:00:13]} 68... h4 {[%clk 0:07:25][%emt 0:00:10]} 69.
Rh8# {[%clk 0:08:18][%emt 0:00:13]} 1-0

[White "BORCEUX, Theophile"]
[Black "DECLERCK, Timothee"]
[WhiteElo "1888"]
[BlackElo "1854"]
[Result "1/2-1/2"]
[Date "2026.03.05"]